bitfinex/quotes_SOLUSD_20250721
["timestamp","ask_amount","ask_price","bid_price","bid_amount"]
[1753086979221,37.18,191.68,191.64,15.32090492]
[1753086979729,16.78468397,191.69,191.65,0.72]
[1753086979912,16.78468397,191.69,191.65,10.10288673]
[1753086980112,16.78468397,191.7,191.65,10.10288673]
[1753086980423,37.18,191.69,191.65,10.10288673]
[1753086980606,22.0012221,191.7,191.65,10.10288673]
[1753086980801,37.18,191.69,191.65,9.38288673]
[1753086981433,37.85,191.69,191.65,9.38288673]
[1753086982030,43.06676403,191.69,191.65,9.38288673]
[1753086982216,43.06676403,191.69,191.64,9.38288673]
[1753086982729,52.44965076,191.69,191.64,9.38288673]
[1753086983226,0.67,191.68,191.64,9.38288673]
[1753086984131,0.67,191.68,191.63,0.72]
[1753086984132,18.42368397,191.64,191.61,0.2]
[1753086984340,35.38288673,191.62,191.61,0.2]
[1753086984726,26.0,191.59,191.58,0.2]
[1753086984916,89.3475707,191.59,191.58,0.2]
[1753086985224,90.0175707,191.59,191.58,0.2]
[1753086985429,79.96468397,191.59,191.58,0.2]
[1753086986212,15.27161115,191.62,191.58,0.2]
[1753086986414,42.78468397,191.6,191.58,0.2]
[1753086986709,53.96468397,191.59,191.58,0.2]
[1753086986912,37.18,191.59,191.58,0.2]
[1753086987140,53.96468397,191.59,191.58,0.2]
[1753086988312,53.96468397,191.59,191.58,0.92]
[1753086988615,37.18,191.59,191.58,0.2]
[1753086988814,37.18,191.59,191.58,0.92]
[1753086989210,32.3370707,191.63,191.58,0.92]
[1753086989211,16.78468397,191.62,191.58,0.2]
[1753086989537,26.1675707,191.6,191.58,0.2]
[1753086989835,53.98468397,191.59,191.58,0.2]
[1753086992410,69.25704979,191.59,191.58,0.2]
[1753086993325,32.05704979,191.59,191.58,0.2]
[1753086993540,69.39704979,191.59,191.58,0.2]
[1753086996518,69.39704979,191.59,191.58,1e-08]
[1753086997109,65.90343939,191.59,191.58,1e-08]
[1753086997314,16.78468397,191.57,191.56,0.03]
[1753086997509,59.9939603,191.57,191.56,0.03]
[1753086997714,60.6639603,191.57,191.56,0.03]
[1753086998413,65.88398431,191.57,191.56,0.03]
[1753086998836,59.99470798,191.57,191.56,0.03]
[1753086999054,65.88398431,191.57,191.56,0.03]
[1753086999236,65.88398431,191.57,191.56,1e-08]
[1753087000152,22.67470798,191.57,191.56,1e-08]
[1753087000439,65.86398431,191.57,191.56,1e-08]
[1753087003722,42.78468397,191.55,191.54,0.03]
[1753087003941,42.78468397,191.54,191.53,0.03]
[1753087004443,49.3939603,191.54,191.53,0.03]
[1753087004739,23.3939603,191.54,191.53,0.03]
[1753087004947,28.61480189,191.54,191.53,0.03]
[1753087005940,34.92870189,191.54,191.53,0.03]
[1753087006141,16.78468397,191.5,191.43,0.69]
[1753087006349,59.9339603,191.49,191.43,0.69]
[1753087006565,60.6539603,191.49,191.43,0.69]
[1753087007119,27.89616511,191.49,191.42,5.25401183]
[1753087007324,54.04468397,191.49,191.48,0.72]
[1753087007739,54.02468397,191.49,191.48,0.72]
[1753087008253,31.88927633,191.54,191.48,6.60927633]
[1753087008427,16.78468397,191.55,191.49,6.57927633]
[1753087008428,54.04468397,191.53,191.49,6.57927633]
[1753087008623,37.26,191.52,191.49,5.88927633]
[1753087008819,37.26,191.52,191.5,0.69]
[1753087009245,5.88927633,191.55,191.5,5.2217979]
[1753087009246,16.78468397,191.54,191.5,5.2217979]
[1753087009441,16.78468397,191.54,191.51,0.69]
[1753087009640,37.26,191.53,191.51,0.69]
[1753087009829,16.78468397,191.54,191.52,0.69]
[1753087010030,37.26,191.53,191.5,5.2217979]
[1753087010442,16.78468397,191.57,191.52,8.63521107]
[1753087010649,37.24,191.56,191.53,9.32521107]
[1753087010833,37.24,191.56,191.54,0.69]
[1753087011019,54.02468397,191.56,191.55,0.69]
[1753087011947,16.78468397,191.55,191.51,0.69]
[1753087012135,25.41989504,191.53,191.49,0.69]
[1753087012323,37.24,191.52,191.49,0.69]
[1753087012530,16.78468397,191.51,191.49,0.69]
[1753087012839,37.24,191.5,191.48,8.66521107]
[1753087013038,37.24,191.49,191.48,13.88768861]
[1753087013238,37.24,191.49,191.48,5.25247754]
[1753087013439,37.24,191.49,191.48,14.57768861]
[1753087014345,37.24,191.49,191.48,9.35521107]
[1753087014655,37.24,191.49,191.48,0.72]
[1753087015350,62.65989504,191.49,191.48,0.03]
[1753087016144,54.02468397,191.49,191.48,0.03]
[1753087017650,54.02468397,191.49,191.48,0.72]
[1753087018027,13.85664023,191.52,191.48,0.72]
[1753087018256,16.78468397,191.5,191.48,0.72]
[1753087018459,37.22,191.49,191.48,0.72]
[1753087018841,16.78468397,191.5,191.48,0.72]
[1753087019049,37.22,191.49,191.48,0.03]
[1753087019564,37.22,191.49,191.48,0.72]
[1753087020430,16.78468397,191.53,191.48,14.57765091]
[1753087020634,37.22,191.52,191.49,9.32521107]
[1753087020845,37.22,191.52,191.5,0.69]
[1753087021056,37.22,191.52,191.51,0.69]
[1753087021262,54.00468397,191.52,191.48,13.88765091]
[1753087021434,54.00468397,191.52,191.49,0.69]
[1753087021860,8.63521107,191.5,191.48,0.03]
[1753087022043,62.63989504,191.49,191.48,0.03]
[1753087022236,67.86209985,191.49,191.48,0.03]
[1753087022760,54.00468397,191.49,191.48,0.03]
[1753087023336,59.22688878,191.49,191.48,0.03]
[1753087026060,54.00468397,191.49,191.48,0.03]
[1753087026444,59.22688878,191.49,191.48,0.03]
[1753087026647,67.86209985,191.49,191.48,0.03]
[1753087027139,59.22688878,191.49,191.48,0.03]
[1753087027346,67.86209985,191.49,191.48,0.03]
[1753087027543,59.22688878,191.49,191.48,0.03]
[1753087027745,68.58209985,191.49,191.48,0.03]
[1753087028047,66.58898878,191.49,191.48,0.03]
[1753087029140,72.48312346,191.49,191.48,0.03]
[1753087030166,72.48312346,191.49,191.48,1e-08]
[1753087030863,42.78468397,191.46,191.44,0.03]
[1753087031060,59.89881865,191.45,191.44,0.03]
[1753087031241,62.65095029,191.45,191.44,0.03]
[1753087031442,26.0,191.43,191.42,0.03]
[1753087031741,88.65095029,191.43,191.42,0.03]
[1753087031943,89.37095029,191.43,191.42,1e-08]
[1753087032171,94.5947919,191.43,191.42,1e-08]
[1753087032367,94.5947919,191.43,191.38,0.2]
[1753087032368,42.78468397,191.39,191.38,0.2]
[1753087032546,88.65095029,191.39,191.38,0.2]
[1753087032746,89.37095029,191.39,191.38,0.2]
[1753087033374,42.78468397,191.39,191.38,0.2]
[1753087033558,88.65095029,191.39,191.38,0.2]
[1753087034243,94.54588367,191.39,191.38,0.2]
[1753087034671,94.56588367,191.39,191.38,0.2]
[1753087034966,85.91961735,191.39,191.38,0.2]
[1753087035169,93.89588367,191.39,191.38,0.2]
[1753087035370,25.43095029,191.39,191.38,0.2]
[1753087035567,8.64626632,191.42,191.38,0.88]
[1753087035768,16.78468397,191.4,191.39,0.68]
[1753087035962,54.02468397,191.4,191.38,0.2]
[1753087036659,54.02468397,191.4,191.39,0.68]
[1753087037054,16.78468397,191.4,191.39,0.68]
[1753087037249,54.02468397,191.4,191.39,0.68]
[1753087038453,37.24,191.4,191.39,0.68]
[1753087038651,37.24,191.4,191.39,9.32626632]
[1753087038874,37.24,191.4,191.39,0.68]
[1753087039372,37.24,191.4,191.39,0.71]
[1753087039978,37.24,191.4,191.39,9.35626632]
[1753087040290,37.24,191.4,191.39,9.30626632]
[1753087040666,37.24,191.4,191.39,0.66]
[1753087040861,7.1474,191.49,191.39,8.67626632]
[1753087041061,7.1474,191.49,191.43,8.64626632]
[1753087041062,62.67095029,191.48,191.43,8.64626632]
[1753087041260,16.78468397,191.46,191.44,8.64626632]
[1753087041474,54.02468397,191.45,191.44,8.64626632]
[1753087041664,54.02468397,191.45,191.39,5.25490039]
[1753087041977,54.02468397,191.45,191.42,8.64626632]
[1753087042366,37.24,191.44,191.43,0.68]
[1753087042690,37.24,191.44,191.43,8.64626632]
[1753087043069,37.24,191.44,191.43,9.32626632]
[1753087044485,16.78468397,191.45,191.43,9.32626632]
[1753087044668,37.24,191.44,191.43,9.32626632]
[1753087044860,16.78468397,191.45,191.44,0.68]
[1753087045264,16.78468397,191.44,191.4,0.68]
[1753087045491,62.67095029,191.45,191.39,0.03]
[1753087045492,37.24,191.43,191.41,0.68]
[1753087045791,37.24,191.43,191.39,13.90119459]
[1753087045792,54.02468397,191.43,191.42,0.68]
[1753087045996,16.78468397,191.42,191.39,9.35626632]
[1753087046160,37.24,191.41,191.4,0.68]
[1753087046560,37.24,191.41,191.4,9.32626632]
[1753087047287,37.24,191.41,191.4,0.68]
[1753087047591,37.24,191.41,191.4,9.32626632]
[1753087047963,37.24,191.41,191.4,0.68]
[1753087048274,37.24,191.41,191.4,9.32626632]
[1753087048476,16.84468397,191.52,191.43,26.0]
[1753087048686,16.78468397,191.49,191.44,8.64626632]
[1753087048891,16.78468397,191.47,191.43,0.68]
[1753087049898,37.22,191.46,191.43,9.32626632]
[1753087050103,37.22,191.46,191.44,0.68]
[1753087050266,37.22,191.46,191.44,8.64626632]
[1753087050471,54.00468397,191.46,191.45,0.68]
[1753087050865,54.00468397,191.46,191.44,8.64626632]
[1753087051067,54.00468397,191.46,191.43,8.64626632]
[1753087051269,54.00468397,191.46,191.44,0.68]
[1753087051481,16.78468397,191.45,191.41,0.68]
[1753087051794,16.78468397,191.43,191.39,0.71]
[1753087051988,37.22,191.42,191.39,6.60161631]
[1753087052177,37.22,191.42,191.4,6.57161631]
[1753087052371,37.22,191.42,191.41,0.68]
[1753087052580,54.00468397,191.42,191.41,0.68]
[1753087052765,54.00468397,191.42,191.39,5.92161631]
[1753087052965,54.00468397,191.42,191.39,0.03]
[1753087053393,54.00468397,191.42,191.39,0.71]
[1753087054186,54.00468397,191.42,191.39,6.60161631]
[1753087054700,16.78468397,191.41,191.39,0.03]
[1753087054874,54.00468397,191.4,191.39,0.03]
[1753087055071,54.00468397,191.4,191.39,6.60161631]
[1753087055288,54.00468397,191.4,191.39,9.3551453]
[1753087055485,54.00468397,191.4,191.39,0.03]
[1753087058990,37.22,191.4,191.39,9.3551453]
[1753087059898,16.78468397,191.45,191.39,9.3551453]
[1753087060096,16.78468397,191.45,191.41,8.6451453]
[1753087060097,16.78468397,191.43,191.41,8.6451453]
[1753087060397,37.22,191.42,191.4,8.6451453]
[1753087060566,16.78468397,191.45,191.4,8.6451453]
[1753087060774,16.78468397,191.43,191.39,0.03]
[1753087060975,0.06,191.4,191.39,8.6751453]
[1753087061289,37.28,191.4,191.39,9.3551453]
[1753087062872,37.28,191.4,191.39,8.6751453]
[1753087063078,0.06,191.4,191.39,14.58007868]
[1753087063875,0.75,191.51,191.42,26.0]
[1753087064090,0.06,191.51,191.47,8.6451453]
[1753087064288,37.22,191.5,191.47,8.6451453]
[1753087064891,37.22,191.49,191.48,8.6451453]
[1753087065093,37.22,191.49,191.47,0.67]
[1753087065395,37.22,191.49,191.48,8.6451453]
[1753087067091,0.06,191.51,191.48,8.6451453]
[1753087067478,37.22,191.5,191.48,8.6451453]
[1753087067678,0.06,191.51,191.48,8.6451453]
[1753087067883,37.22,191.49,191.48,8.6451453]
[1753087068398,0.06,191.51,191.45,0.67]
[1753087068701,1e-08,191.51,191.5,10.2927453]
[1753087068904,41.5107389,191.58,191.57,26.0]
[1753087069093,0.06,191.6,191.57,35.3151453]
[1753087069281,0.06,191.6,191.59,8.6451453]
[1753087069783,0.06,191.6,191.59,9.3151453]
[1753087070379,0.06,191.6,191.59,17.9602906]
[1753087070581,0.06,191.6,191.59,9.3151453]
[1753087070878,0.06,191.6,191.59,14.53462439]
[1753087071078,0.06,191.6,191.59,17.11485981]
[1753087071281,0.06,191.65,191.62,26.0]
[1753087071482,0.06,191.65,191.64,8.6451453]
[1753087071900,0.06,191.65,191.64,9.3151453]
[1753087072799,0.06,191.65,191.64,14.5332626]
[1753087073104,0.06,191.65,191.64,8.6451453]
[1753087073476,0.06,191.65,191.62,26.0]
[1753087073477,17.53468397,191.65,191.63,8.6451453]
[1753087075200,16.84468397,191.65,191.64,8.6451453]
[1753087075990,22.752529,191.65,191.56,1.5055]
[1753087076203,16.78468397,191.63,191.6,8.6451453]
[1753087076404,37.2,191.62,191.61,8.6451453]
[1753087076708,37.2,191.62,191.61,9.3151453]
[1753087077215,0.06,191.65,191.61,9.3151453]
[1753087077385,0.06,191.65,191.64,8.6451453]
[1753087077709,37.26,191.65,191.64,8.6451453]
[1753087078392,0.06,191.65,191.64,8.6451453]
[1753087078703,37.26,191.65,191.64,8.6451453]
[1753087081815,54.71468397,191.65,191.64,8.6451453]
[1753087082012,16.78468397,191.64,191.56,8.47397049]
[1753087082205,0.69,191.63,191.61,8.6451453]
[1753087082386,37.87,191.62,191.61,8.6451453]
[1753087082793,16.78468397,191.61,191.54,0.67]
[1753087082999,17.47468397,191.61,191.57,8.6451453]
[1753087083302,16.78468397,191.61,191.59,5.88279824]
[1753087083502,1.5,191.65,191.6,5.88279824]
[1753087083704,53.96468397,191.64,191.62,5.88279824]
[1753087084514,1.5,191.65,191.63,5.88279824]
[1753087084688,0.81,191.65,191.64,5.88279824]
[1753087085012,37.99,191.65,191.64,5.88279824]
[1753087085216,37.99,191.65,191.64,9.40353071]
[1753087086701,37.99,191.65,191.64,15.29164801]
[1753087087613,37.99,191.65,191.64,14.62164801]
[1753087088416,37.99,191.65,191.64,15.29164801]
[1753087089900,37.99,191.65,191.64,14.62164801]
[1753087090621,37.99,191.65,191.64,15.29164801]
[1753087091597,37.99,191.65,191.64,14.62164801]
[1753087093306,0.81,191.65,191.64,14.62164801]
[1753087094719,0.81,191.65,191.64,15.34164801]
[1753087094917,0.81,191.65,191.64,14.62164801]
[1753087095423,0.81,191.65,191.62,5.21866193]
[1753087095624,0.81,191.65,191.64,9.40353071]
[1753087095820,0.81,191.65,191.62,5.21866193]
[1753087096012,0.81,191.65,191.64,9.40353071]
[1753087096650,0.81,191.65,191.62,5.21866193]
[1753087096806,0.81,191.65,191.64,9.40353071]
[1753087097218,0.81,191.65,191.64,10.12353071]
[1753087097424,0.81,191.65,191.64,9.40353071]
[1753087097623,0.81,191.65,191.64,14.62164801]
[1753087098924,0.81,191.65,191.64,9.40353071]
[1753087099302,1.47,191.65,191.64,9.40353071]
[1753087100112,0.81,191.65,191.64,9.40353071]
[1753087101637,1.47,191.65,191.6,5.21920668]
[1753087101839,0.66,191.64,191.63,9.40353071]
[1753087102523,0.81,191.65,191.63,9.40353071]
[1753087102706,1.47,191.65,191.63,9.40353071]
[1753087102897,0.66,191.64,191.63,9.40353071]
[1753087103335,16.78468397,191.63,191.6,9.40353071]
[1753087103511,37.82,191.62,191.59,9.40353071]
[1753087103840,0.66,191.61,191.59,9.40353071]
[1753087104426,0.66,191.61,191.58,5.21974271]
[1753087104427,0.66,191.61,191.6,9.40353071]
[1753087104629,0.66,191.61,191.58,5.21974271]
[1753087104926,37.16,191.62,191.6,9.40353071]
[1753087105230,0.66,191.61,191.6,9.40353071]
[1753087107043,37.16,191.62,191.6,9.40353071]
[1753087107221,0.66,191.61,191.6,5.88106433]
[1753087110021,37.16,191.62,191.6,5.88106433]
[1753087110213,37.82,191.62,191.6,5.88106433]
[1753087110530,16.78468397,191.54,191.53,0.03]
[1753087110707,16.78468397,191.52,191.41,5.42435591]
[1753087110910,16.78468397,191.5,191.49,5.88106433]
[1753087111110,16.78468397,191.5,191.45,0.72]
[1753087111333,37.16,191.49,191.48,5.88106433]
[1753087111723,37.16,191.49,191.45,5.94319953]
[1753087111926,17.44468397,191.48,191.42,5.22409983]
[1753087112111,17.44468397,191.48,191.45,5.88106433]
[1753087112431,37.82,191.47,191.43,26.0]
[1753087112642,37.82,191.47,191.46,5.88106433]
[1753087112818,37.82,191.47,191.43,26.0]
[1753087113016,37.82,191.47,191.46,5.88106433]
[1753087113334,0.66,191.47,191.46,5.88106433]
[1753087113515,37.82,191.47,191.46,5.88106433]
[1753087113716,16.78468397,191.48,191.46,5.88106433]
[1753087113914,37.16,191.47,191.46,5.88106433]
[1753087114337,37.16,191.47,191.45,5.22319639]
[1753087114510,37.16,191.47,191.46,5.88106433]
[1753087115112,37.82,191.47,191.46,5.88106433]
[1753087117454,16.78468397,191.5,191.46,11.10407319]
[1753087117622,16.78468397,191.5,191.49,5.88106433]
[1753087117817,53.96468397,191.5,191.49,5.88106433]
[1753087119242,16.78468397,191.49,191.44,5.88106433]
[1753087119422,0.66,191.48,191.44,5.88106433]
[1753087119740,16.78468397,191.46,191.44,5.88106433]
[1753087119940,37.18,191.45,191.43,5.223792]
[1753087120121,0.66,191.44,191.42,5.88106433]
[1753087120310,0.66,191.43,191.42,5.88106433]
[1753087121546,0.66,191.43,191.42,31.88106433]
[1753087121915,0.66,191.43,191.41,6.08106433]
[1753087122231,16.78468397,191.45,191.42,26.0]
[1753087122545,16.78468397,191.43,191.41,0.2]
[1753087122916,0.66,191.42,191.41,0.2]
[1753087123443,0.66,191.42,191.4,5.91106433]
[1753087123444,26.0,191.38,191.35,0.2]
[1753087123628,26.0,191.38,191.33,0.03]
[1753087123629,16.78468397,191.35,191.33,0.03]
[1753087123836,16.78468397,191.33,191.24,5.88106433]
[1753087124032,5.88106433,191.31,191.2,0.2]
[1753087124342,26.0,191.35,191.2,0.2]
[1753087124343,22.6657483,191.29,191.2,32.08106433]
[1753087124543,22.6657483,191.29,191.2,6.08106433]
[1753087124544,59.8457483,191.29,191.2,6.08106433]
[1753087124748,60.5157483,191.29,191.21,5.88106433]
[1753087124936,65.7434131,191.29,191.21,5.88106433]
[1753087125251,68.52351784,191.29,191.2,8.86116907]
[1753087125426,74.90111784,191.29,191.2,0.2]
[1753087125743,16.78468397,191.27,191.2,0.2]
[1753087125952,25.44585304,191.21,191.2,0.2]
[1753087126120,62.62585304,191.21,191.2,0.2]
[1753087126448,63.29585304,191.21,191.2,0.2]
[1753087126667,63.29585304,191.21,191.06,0.68]
[1753087126668,22.92058397,191.2,191.06,0.68]
[1753087126949,16.78468397,191.16,191.09,5.23313621]
[1753087127149,16.78468397,191.14,191.02,5.23505392]
[1753087127325,0.67,191.15,191.11,8.66116907]
[1753087127527,16.78468397,191.13,191.11,8.66116907]
[1753087127834,16.78468397,191.13,191.09,8.66116907]
[1753087128343,17.45468397,191.13,191.09,8.66116907]
[1753087128552,7.49852462,191.16,191.1,8.66116907]
[1753087128750,7.49852462,191.16,191.09,8.66116907]
[1753087128751,62.94585304,191.15,191.09,8.66116907]
[1753087128932,68.17743784,191.15,191.07,31.9136478]
[1753087129138,16.78468397,191.13,191.08,8.66116907]
[1753087129338,16.78468397,191.11,191.08,8.66116907]
[1753087132253,16.78468397,191.11,191.09,26.0]
[1753087132924,16.78468397,191.11,191.07,34.66116907]
[1753087133131,16.78468397,191.11,191.07,35.34116907]
[1753087133348,16.78468397,191.12,191.08,9.34116907]
[1753087133557,54.26468397,191.1,191.09,34.66116907]
[1753087133934,54.26468397,191.1,191.09,26.0]
[1753087134857,54.26468397,191.1,191.07,13.89480332]
[1753087135456,54.26468397,191.1,191.08,8.66116907]
[1753087135457,37.46,191.09,191.08,8.66116907]
[1753087135655,37.46,191.09,191.08,9.34116907]
[1753087136356,37.46,191.09,191.08,0.68]
[1753087136535,37.46,191.09,191.08,9.34116907]
[1753087136736,37.46,191.09,191.08,14.57457916]
[1753087137266,16.78468397,191.08,190.99,0.68]
[1753087137452,16.78468397,191.06,191.01,8.66116907]
[1753087137758,16.78468397,191.04,191.01,9.34116907]
[1753087137949,37.5,191.03,191.01,9.34116907]
[1753087138151,0.67,191.08,191.02,9.34116907]
[1753087138351,54.28468397,191.07,191.04,8.66116907]
[1753087138654,54.28468397,191.07,191.03,8.66116907]
[1753087138835,54.95468397,191.07,191.02,0.68]
[1753087139035,54.95468397,191.07,191.03,8.66116907]
[1753087139529,6.0599,191.09,190.97,5.23642456]
[1753087139734,54.26468397,191.08,191.04,8.66116907]
[1753087140152,16.78468397,191.12,191.07,8.66116907]
[1753087140465,16.78468397,191.1,191.09,8.66116907]
[1753087140666,6.86023621,191.09,190.96,0.39563263]
[1753087140837,22.78868397,191.04,190.96,0.39563263]
[1753087141038,16.78468397,191.02,190.96,0.39563263]
[1753087141685,0.67,191.01,190.96,0.39563263]
[1753087141964,8.66116907,190.97,190.88,0.68]
[1753087142178,16.78468397,190.95,190.88,0.68]
[1753087142378,16.78468397,190.95,190.88,9.34116907]
[1753087142579,8.66116907,190.93,190.86,0.68]
[1753087142875,16.78468397,190.91,190.87,8.66116907]
[1753087143072,38.42,190.92,190.91,26.0]
[1753087143270,16.78468397,190.95,190.91,35.34116907]
[1753087143557,16.78468397,190.99,190.94,8.66116907]
[1753087143755,9.33116907,191.06,190.98,8.66116907]
[1753087143958,47.06116907,191.05,190.98,8.66116907]
[1753087144162,47.06116907,191.05,190.95,0.68]
[1753087144163,25.44585304,191.04,190.96,26.0]
[1753087144349,25.44585304,191.04,190.98,8.66116907]
[1753087144550,16.78468397,191.04,191.01,8.66116907]
[1753087144741,16.78468397,191.04,191.03,8.66116907]
[1753087145058,22.01918983,191.04,191.02,8.66116907]
[1753087145469,22.01918983,191.04,190.98,0.68]
[1753087146149,22.01924992,191.04,190.98,0.68]
[1753087147064,22.01924992,191.04,191.0,8.66116907]
[1753087147371,22.68924992,191.04,190.98,0.71]
[1753087147572,0.67,191.03,190.99,8.66116907]
[1753087147877,16.78468397,191.01,190.99,8.66116907]
[1753087148852,22.0202116,191.01,190.99,8.66116907]
[1753087149373,22.0202116,191.01,190.98,0.03]
[1753087149561,22.0202116,191.01,190.99,8.66116907]
[1753087149771,5.23552763,191.01,190.98,8.69116907]
[1753087149983,16.78468397,191.0,190.98,0.03]
[1753087150161,5.23552763,191.01,190.99,8.66116907]
[1753087150364,55.12468397,191.0,190.99,8.66116907]
[1753087150548,16.78468397,190.99,190.98,0.03]
[1753087150753,26.11585304,190.99,190.98,1e-08]
[1753087150961,31.35172926,190.99,190.98,1e-08]
[1753087153566,22.69056019,190.99,190.98,1e-08]
[1753087153950,31.35172926,190.99,190.98,1e-08]
[1753087156878,19.16135002,191.04,190.98,9.33116908]
[1753087157053,5.23395791,191.06,191.03,8.66116907]
[1753087157378,30.0,191.04,191.01,26.0]
[1753087157568,0.71,191.13,191.01,26.0]
[1753087157569,38.62,191.05,191.01,26.0]
[1753087157879,38.62,191.05,191.02,0.67]
[1753087158179,38.62,191.05,191.03,0.67]
[1753087158363,38.62,191.05,191.04,9.33116907]
[1753087158983,16.78468397,191.04,190.98,1e-08]
[1753087159280,26.0,191.01,190.98,1e-08]
[1753087159485,81.50468397,191.0,190.98,1e-08]
[1753087159868,82.21468397,191.0,190.98,1e-08]
[1753087160279,58.70468397,190.99,190.98,1e-08]
[1753087161084,63.94056019,190.99,190.98,1e-08]
[1753087161497,73.31172926,190.99,190.98,1e-08]
[1753087161969,63.94056019,190.99,190.98,1e-08]
[1753087162160,22.02056019,190.99,190.98,1e-08]
[1753087162359,103.98172926,190.99,190.98,1e-08]
[1753087162561,48.73056019,190.99,190.98,1e-08]
[1753087162772,95.34056019,190.99,190.98,1e-08]
[1753087163078,104.00172926,190.99,190.98,1e-08]
[1753087163257,22.02056019,190.99,190.98,0.67000001]
[1753087163762,64.12468397,190.99,190.98,0.67000001]
[1753087164163,47.36,191.02,190.98,0.67000001]
[1753087164365,16.78468397,191.08,190.98,0.67000001]
[1753087164664,47.64,191.07,191.01,8.66116907]
[1753087164886,47.64,191.07,191.02,9.33116907]
[1753087165094,47.64,191.07,191.03,0.67]
[1753087165388,47.64,191.07,191.04,0.67]
[1753087166189,16.78468397,191.06,191.02,8.66116907]
[1753087166382,16.78468397,191.06,191.02,0.67]
[1753087166763,25.44585304,191.06,191.02,0.67]
[1753087166987,16.78468397,191.06,190.99,0.67]
[1753087167395,8.66116907,191.04,190.99,0.67]
[1753087167603,16.78468397,191.02,190.99,0.67]
[1753087168174,16.78468397,191.02,190.99,9.33116907]
[1753087168471,0.71,191.17,191.04,26.0]
[1753087168690,9.37116907,191.17,191.05,0.67]
[1753087168972,9.37116907,191.17,191.09,8.66116907]
[1753087168973,16.78468397,191.14,191.09,8.66116907]
[1753087169202,16.78468397,191.12,191.09,0.67]
[1753087169613,16.78468397,191.12,191.08,8.66116907]
[1753087169811,16.78468397,191.14,191.09,8.66116907]
[1753087170013,48.18,191.11,191.09,8.66116907]
[1753087170296,48.18,191.11,191.09,9.33116907]
[1753087170874,48.18,191.11,191.09,0.67]
[1753087171184,48.18,191.11,191.09,14.56430528]
[1753087171576,15.09486907,191.19,191.09,14.56430528]
[1753087171776,0.06,191.2,191.09,5.90313621]
[1753087172103,1e-08,191.1,191.09,5.90313621]
[1753087172283,1e-08,191.1,191.09,14.56430528]
[1753087172610,0.06,191.2,191.12,26.0]
[1753087172800,0.06,191.2,191.19,8.66116907]
[1753087173101,0.1,191.22,191.21,26.0]
[1753087173289,0.1,191.22,191.2,0.67]
[1753087173487,0.1,191.22,191.19,5.23039907]
[1753087173488,0.1,191.22,191.21,9.33116907]
[1753087174604,0.1,191.22,191.21,0.67]
[1753087174810,0.1,191.22,191.21,9.33116907]
[1753087175598,0.1,191.4,191.21,35.33116907]
[1753087175799,0.1,191.4,191.32,8.66116907]
[1753087176004,0.1,191.4,191.27,7.7823]
[1753087176005,8.66116907,191.38,191.27,7.7823]
[1753087176183,25.44585304,191.37,191.31,8.66116907]
[1753087176384,0.1,191.4,191.32,0.67]
[1753087176596,61.56587867,191.4,191.34,8.66116907]
[1753087176794,16.78468397,191.39,191.34,8.66116907]
[1753087176997,5.22520639,191.38,191.35,9.33116907]
[1753087177315,29.8380902,191.37,191.31,13.72340623]
[1753087177485,16.78468397,191.37,191.33,13.05340623]
[1753087177682,16.78468397,191.37,191.33,13.72340623]
[1753087177902,16.78468397,191.37,191.34,13.72340623]
[1753087178080,16.78468397,191.37,191.31,13.72340623]
[1753087178289,29.8380902,191.37,191.31,13.72340623]
[1753087178708,16.78468397,191.37,191.31,0.67]
[1753087178905,16.78468397,191.37,191.32,13.05340623]
[1753087179093,16.78468397,191.37,191.33,0.67]
[1753087179293,16.78468397,191.37,191.34,0.67]
[1753087180101,22.0101708,191.37,191.34,0.67]